{"text_format":"1","workbook":"xlsx","n_sheets":4,"sheets":["Sheet1","Sheet2","Module1","Sheet3"],"not_rendered":{"charts":0,"images":0,"macros":1,"external_links":0,"defined_names":2,"comments":0,"pivot_tables":0},"unopened":[{"sheet":"Module1","index":2,"reason":"part_missing"}],"bounds":{"document_bytes":16777216,"sheet_cells":100000,"rows_first":2000,"rows_last":500,"rows_between":2000,"halvings":0,"cell_chars":16384,"cell_head_chars":4096},"cells_cut":0,"cells_raw":0,"read":"whole","date_system":"1900"}

{"sheet":"Sheet1","index":0,"n_rows":114,"n_cols":18,"rows_kept":114,"cut":false,"hidden":false,"merged":[[93,5,93,6],[94,5,94,6],[95,5,95,6],[96,5,96,6],[97,5,97,6],[88,5,88,6],[89,5,89,6],[90,5,90,6],[91,5,91,6],[92,5,92,6],[83,5,83,6],[84,5,84,6],[85,5,85,6],[86,5,86,6],[87,5,87,6],[78,5,78,6],[79,5,79,6],[80,5,80,6],[81,5,81,6],[82,5,82,6],[73,5,73,6],[74,5,74,6],[75,5,75,6],[76,5,76,6],[77,5,77,6],[97,8,97,9],[98,8,98,9],[107,5,107,6],[106,5,106,6],[106,10,106,15],[107,10,107,15],[98,5,98,6],[99,5,99,6],[100,5,100,6],[101,5,101,6],[102,5,102,6],[103,5,103,6],[104,5,104,6],[75,8,75,9],[76,8,76,9],[77,8,77,9],[78,8,78,9],[79,8,79,9],[88,8,88,9],[91,8,91,9],[89,8,89,9],[90,8,90,9],[80,8,80,9],[81,8,81,9],[82,8,82,9],[83,8,83,9],[84,8,84,9],[38,14,38,15],[39,7,39,8],[105,8,105,9],[38,11,38,13],[51,12,51,15],[52,12,52,15],[53,13,53,14],[38,9,38,10],[92,8,92,9],[93,8,93,9],[94,8,94,9],[95,8,95,9],[96,8,96,9],[85,8,85,9],[86,8,86,9],[87,8,87,9],[10,2,10,14],[11,2,11,4],[11,6,11,8],[11,13,11,14],[15,7,15,8],[13,6,13,7],[13,12,13,13],[14,12,14,13],[15,12,15,13],[8,2,8,7],[9,2,9,7],[8,11,8,14],[9,11,9,14],[7,11,7,12],[32,11,32,12],[105,5,105,6],[71,5,72,6],[38,4,38,5],[63,3,63,4],[64,3,64,4],[65,3,65,4],[66,3,66,4],[57,2,57,3],[58,2,58,3],[59,2,59,3],[60,2,60,3],[56,1,56,5],[39,2,39,3],[73,8,73,9],[74,8,74,9]]}
[null,null,null,null,null,null,null,null,"Request for Electrical Service Information"]
[null,null,null,null,null,null,null,null,"from Architect / Engineer / Contractor"]
["Mr. Architect / Engineer / Contractor:"]
["Please submit this form for each building to be served by South Utah Valley Electric for which you are preparing the electrical design specifications, and plans.  "]
["With this requested data, SESD will reply to you, giving the necessary electrical service information for you to complete your design.  Two "]
["prints of plot plans showing building, proposed location of service entrance, and electrical room are required before we can proceed with design."]
[]
[null,null,null,null,null,null,null,null,null,null,"Date:"]
[null,"Your Name:",null,null,null,null,null,null,null,null,"Your Company:"]
[null,"Address:",null,null,null,null,null,null,null,null,"Phone Number:"]
[null,"Building:"]
[null,"Location:",null,null,null,"City:",null,null,null,"State:",null,null,"Zip Code:"]
[]
[null,"Total Size of Building:",null,null,null,null,null,null,"sq. ft.",null,null,"   Office:",null,null," sq. ft."]
[null,"If apartment or motel, number of units:",null,null,null,null,null,null,null,null,null,"   Manufacturing:",null,null," sq. ft."]
[null,"Anticipated date for permanent electric service:",null,null,null,null,null,null,null,null,null,"   Warehouse:",null,null," sq. ft."]
[]
["Description of Electrical Loads"]
["New Equipment",null,null,null,null,null,"Load",null,"New Equipment",null,null,null,null,null,"Load"]
["HVAC",null,null,null,"Tons:",null,{"$f":"F20*0.9","v":0},"Tot. KW","Washer/Dryer",null,null,null,null,null,null,"KW"]
["Refrigeration Equipment",null,null,null,"Tons:",null,{"$f":"F21*0.9","v":0},"Tot. KW","Machinery",null,null,"Number:",null,null,null,"Tot. HP"]
["Elec. Heat",null,null,null,null,null,null,"KW","Exhaust Fans",null,null,"Number:",null,null,null,"Tot. HP"]
["Water Heating",null,null,null,null,null,null,"KW","Gas/Fuel/Sump Pumps",null,null,"Number:",null,null,null,"Tot. HP"]
["Lighting",null,null,null,null,null,null,"KW","Small Motors",null,null,"Number:",null,null,null,"Tot. HP"]
["Outlets",null,null,null,null,null,null,"KW","Compressors",null,null,"Number:",null,null,null,"Tot. HP"]
["Office Equipment",null,null,null,null,null,null,"KW","Irrigation Pump",null,null,null,null,null,null,"HP"]
["Kitchen Equipment",null,null,null,null,null,null,"KW","Welders",null,null,null,null,null,null,"KW"]
["Computers",null,null,null,null,null,null,"KW","Boiler",null,null,null,null,null,null,"KW"]
["Thermoplastic Injection Equipment",null,null,null,null,null,null,"KW","Heat Exchanger",null,null,null,null,null,null,"KW"]
["Elevators",null,null,null,null,null,null,"KW","Humidifier",null,null,null,null,null,null,"HP"]
["Signs",null,null,null,null,null,null,"KW","Misc. (Itemize on separate sheet)",null,null,null,null,null,null,"KW"]
["Snow Melting",null,null,null,null,null,null,"KW","Future Equipment (Itemize on separate sheet)",null,null,null,null,null,null,"KW"]
["X-Ray Equipment",null,null,null,null,null,null,"KW",null,null,"Total:",{"$f":"SUM(O21:O26,O30)","v":0},null,"HP",{"$f":"SUM(G20:G33,O20,O27:O29,O31:O32)","v":0},"KW",{"$f":"O33+(L33*0.85)","v":0},"KW"]
[]
["Existing Equipment:",null,null,null,null," KW",null,"Do you have a similar facility?"]
["Existing Electrical Demand:",null,null,null,null," KW",null,"Where:"]
["Service Desired From SESD"]
["Delivery Voltage:",null,null,"480/277, 3 Phase",null,null,"208/120, 3-Phase",null,null,"240/120, 1-Phase"]
["Customer Electric Panel Size: ",null,null,null,null,null,"Amps","Conductor Size",null,null,null,"Conductors per Phase"]
["Conduit Size:",null,null,null,null,null,"Number of Conduits:",null,null,null,"Service:",null,"Underground",null,null,"Overhead"]
["Desired Location of Service(s) to Building:"]
["Desired Location of Meter(s):"]
["Desired Location of current transformers (metering)/secondary junction box:"]
["Additional information or data required:"]
[]
["Motor-Start Calculations",null,null,null,null,null,null,null,null,null,null,null,null,null,null,"Failure to supply this information may result in unsatisfactory performance during motor-starts."]
["Size of Largest Electrical Motor:",null,null,null,null,"Three Phase HP",null,null,"Single Phase HP",null,null,null,null,"Starting Code or KVA/HP"]
["Total New Motor",null,null,null,null,"Three Phase HP",null,null,"Single Phase HP"]
["Please itemize all electrical motors larger than 25 horsepower on an attached sheet."]
["Are Variable Speed Drives or DC Motors to be used in this Facility?",null,null,null,null,null,null,null,"Yes","No"]
["If yes, please attach a sheet showing number, size, usage, ",null,null,null,null,null,null,null,null,null,"Power Co. Use Only"]
["and anticipated current distortion.",null,null,null,null,null,null,null,null,null,"Job Order#"]
[null,null,null,null,null,null,null,null,null,null,"Account #"]
[null,null,null,null,null,null,null,null,null,null,"Selected Transfomer:",null,null,null,null,"KVA"]
["Customer Information Section:",null,null,null,null,null,null,"Transformer Sizing:"]
[null,null,null,null,null,null,null,"40% Panel Diversity:",null,null,null,{"$f":"IF(C59=3,(C60/1000)*SQRT(3)*N56,IF(C59=1,(C60/1000)*N56,0))","v":115.28530175178446},"KVA",{"$f":"C58*0.4","v":320},"AMPS"]
["NAME:",{"$f":"C9","v":0},null,null,null,null,null,"50% Panel Diversity:",null,null,null,{"$f":"IF(C59=3,(C60/1000)*SQRT(3)*N57,IF(C59=1,(C60/1000)*N57,0))","v":144.10662718973057},"KVA",{"$f":"C58*0.5","v":400},"AMPS"]
["Panel Size:",null,800,null,null,null,null,"Load Diversity (Sheet Below):",null,null,null,{"$f":"K108","v":0},"KVA",{"$f":"IF(C59=3,L58/(C60/1000*SQRT(3)),IF(C59=1,L58/(C60/1000),0))","v":0},"AMPS"]
["Phase:",null,3,null,null,null,null,"Connected Load (40% Diversity)",null,null,null,{"$f":"F108*0.4","v":0},"KVA",{"$f":"IF(C59=3,L59/(C60/1000*SQRT(3)),IF(C59=1,L59/(C60/1000),0))","v":0},"AMPS"]
["Voltage:",null,208,null,null,null,null,"Connected Load (50% Diversity)",null,null,null,{"$f":"F108*0.5","v":0},"KVA",{"$f":"IF(C59=3,L60/(C60/1000*SQRT(3)),IF(C59=1,L60/(C60/1000),0))","v":0},"AMPS"]
["Power Factor:",null,0.95,null,null,null,null,"Connected Load (60% Diversity)",null,null,null,{"$f":"F108*0.6","v":0},"KVA",{"$f":"IF(C59=3,L61/(C60/1000*SQRT(3)),IF(C59=1,L61/(C60/1000),0))","v":0},"AMPS"]
[null,null,null,null,null,null,null,"Load from Sq. Ft.:",null,null,null,{"$f":"K68","v":0},"KVA",{"$f":"IF(C59=3,L62/(C60/1000*SQRT(3)),IF(C59=1,L62/(C60/1000),0))","v":0},"AMPS"]
["Building Size:",null,null,null,null,null,null,"Historical Data from like building",null,null,null,null,"KVA",{"$f":"IF(C59=3,L63/(C60/1000*SQRT(3)),IF(C59=1,L63/(C60/1000),0))","v":0},"AMPS"]
["Total Square footage:",null,null,{"$f":"G14","v":0}]
["Office Space:",null,null,{"$f":"M14","v":0},null,"X",6," Watts/square foot = ",null,null,{"$f":"G65*D65/1000","v":0},null,"KVA"]
["Manufacturing:",null,null,{"$f":"M15","v":0},null,"X",15," Watts/square foot = ",null,null,{"$f":"G66*D66/1000","v":0},null,"KVA"]
["Warehouse:",null,null,{"$f":"M16","v":0},null,"X",2.5," Watts/square foot = ",null,null,{"$f":"G67*D67/1000","v":0},null,"KVA"]
[null,null,null,null,null,null,null,null,"Total","  =",{"$f":"SUM(K65:L67)","v":0},null,"KVA"]
[]
[]
[]
["Description",null,null,null,null,"Connected Load",null,"Unit","Diversity",null,"Diversified",null,"Phase"]
[null,null,null,null,null,null,null,null,null,null,"Load (KW)",null,"Three",null,"Single"]
["HVAC",null,null,null,null,{"$f":"G20","v":0},null,"KW",0.8,null,{"$f":"F74*I74","v":0}]
["Refrigeration Equipment",null,null,null,null,0,null,"KW",0.3,null,0]
["Elec. Heat",null,null,null,null,0,null,"KW",0.7,null,0]
["Water Heating",null,null,null,null,0,null,"KW",0.3,null,0]
["Lighting",null,null,null,null,0,null,"KW",0.18,null,0]
["Outlets",null,null,null,null,0,null,"KW",0.2,null,0]
["Office Equipment",null,null,null,null,0,10,"KW",0.2,null,0]
["Kitchen Equipment",null,null,null,null,0,null,"KW",0.3,null,0]
["Computers, Magnetic Power Supplies",null,null,null,null,0,null,"KW",0.2,null,0]
["Thermoplastic Injection Equipment",null,null,null,null,0,null,"KW",0.3,null,0]
["Elevators",null,null,null,null,0,null,"KW",0.43,null,0]
["Snow Melting",null,null,null,null,0,null,"KW",0.3,null,0]
["Signs",null,null,null,null,0,null,"KW",0.18,null,0]
["X-Ray Equipment",null,null,null,null,0,null,"KW",0.3,null,0]
["Washer/Dryer",null,null,null,null,{"$f":"O20","v":0},null,"KW",0.22,null,0]
["Machinery",null,null,{"$f":"O21","v":0},"HP",{"$f":"(D89*0.85)","v":0},null,"KW",0.3,null,0]
["Exhaust Fans",null,null,0,"HP",0,null,"KW",0.43,null,0]
["Gas/Fuel/Sump Pump",null,null,0,"HP",0,null,"KW",0.22,null,0]
["Small Motors",null,null,0,"HP",0,null,"KW",0.22,null,0]
["Compressor",null,null,0,"HP",0,null,"KW",0.22,null,0]
["Irrigation Pump ",null,null,0,"HP",0,null,"KW",0.8,null,{"$f":"F94*I94","v":0}]
["Welders",null,null,null,null,{"$f":"O27","v":0},null,"KW",0.8,null,0]
["Boiler",null,null,null,null,{"$f":"O28","v":0},null,"KW",0.3,null,0]
["Heat Exchanger",null,null,null,null,{"$f":"O29","v":0},null,"KW",0.22,null,0]
["Humidifier",null,null,{"$f":"O30","v":0},"HP",{"$f":"O30","v":0},null,"KW",0.22,null,0]
["Misc.",null,null,null,null,{"$f":"O31","v":0},null,"KW",0.18,null,{"$f":"F99*I99","v":0}]
[null,null,null,null,null,null,null,"KW",null,null,0]
[null,null,null,null,null,null,null,"KW",null,null,0]
[null,null,null,null,null,null,null,"KW",null,null,0]
[null,null,null,null,null,null,null,"KW",null,null,0]
[null,null,null,null,null,null,null,"KW",null,null,0]
[null,null,null,null,null,null,null,"KW",null,null,0]
["Future Equipment",null,null,null,null,{"$f":"O32","v":0},null,"KW",0.5,null,0]
["Totals: (in KW)",null,null,null,"Connected Load:",{"$f":"SUM(F74:F106)","v":0},null,"KW","Diversified Load:",null,{"$f":"SUM(K74:K106)","v":0}]
["Totals: (in KVA)",null,null,null,"Connected Load:",{"$f":"F107/C61","v":0},null,"KVA","Diversified Load:",null,{"$f":"K107/C61","v":0}]
[]
["Conversion Values:",null,null,1,"HP = ",746,"Watt",null,null,1,"Ton =",1200,"Watts"]
[null,null,null,null,"Power Factor:",{"$f":"C61","v":0.95}]
[]
[null,null,null,null,null,null,null,null,null,208,1]
[null,null,null,null,null,null,null,null,null,480,3]

{"sheet":"Sheet2","index":1,"n_rows":4,"n_cols":2,"rows_kept":4,"cut":false,"hidden":false,"merged":[]}
[null,"voltage list"]
[null,240]
[null,208]
[null,480]

{"sheet":"Sheet3","index":3,"n_rows":0,"n_cols":0,"rows_kept":0,"cut":false,"hidden":false,"merged":[]}